fUST/lending_fUST_20240912
["ID","MTS","AMOUNT","RATE_DAILY","PERIOD"]
[337782496,1726114247205,-867.47,0.00021917,2]
[337782497,1726114247214,-1353.58,0.00021917,2]
[337782498,1726114247223,-502.34866947,0.00021917,2]
[337782499,1726114247232,-678.62,0.00021917,2]
[337782500,1726114247241,-534.99,0.00021917,2]
[337782501,1726114247250,-1527.67,0.00021917,2]
[337782502,1726114247260,-216.35083756,0.00021917,2]
[337782503,1726114247272,-500.0,0.00021917,2]
[337782504,1726114247281,-500.0,0.00021917,2]
[337782505,1726114247291,-500.0,0.00021917,2]
[337782506,1726114247300,-794.517859,0.00021917,2]
[337782507,1726114247310,-500.0,0.00021917,2]
[337782508,1726114247319,-516.15,0.00021917,2]
[337782509,1726114247329,-500.0,0.00021917,2]
[337782510,1726114247340,-500.0,0.00021917,2]
[337782511,1726114247352,-930.0,0.00021917,2]
[337782512,1726114247361,-500.0,0.00021917,2]
[337782513,1726114247374,-500.0,0.00021917,2]
[337782514,1726114247384,-500.0,0.00021917,2]
[337782515,1726114247394,-892.77,0.00021917,2]
[337782516,1726114247403,-794.517859,0.00021917,2]
[337782517,1726114247413,-500.0,0.00021917,2]
[337782518,1726114247423,-8859.87,0.00021917,2]
[337782519,1726114247433,-1154.14,0.00021917,2]
[337782520,1726114247442,-500.0,0.00021917,2]
[337782521,1726114247452,-1154.14,0.00021917,2]
[337782522,1726114247462,-1154.14,0.00021917,2]
[337782523,1726114247472,-1154.14,0.00021917,2]
[337782524,1726114247481,-500.0,0.00021917,2]
[337782525,1726114247490,-1154.14,0.00021917,2]
[337782526,1726114247500,-1154.14,0.00021917,2]
[337782527,1726114247509,-1154.14,0.00021917,2]
[337782528,1726114247519,-1154.14,0.00021917,2]
[337782529,1726114247530,-1154.14,0.00021917,2]
[337782530,1726114247539,-219.65621999,0.00021917,2]
[337782531,1726114247551,-1154.14,0.00021917,2]
[337782532,1726114247561,-1154.14,0.00021917,2]
[337782533,1726114247570,-1154.14,0.00021917,2]
[337782534,1726114247580,-1154.14,0.00021917,2]
[337782535,1726114247589,-500.0,0.00021917,2]
[337782536,1726114247598,-500.81888714,0.00021917,2]
[337782537,1726114247607,-1154.14,0.00021917,2]
[337782538,1726114247616,-1154.14,0.00021917,2]
[337782539,1726114247626,-500.0,0.00021917,2]
[337782540,1726114247635,-1154.14,0.00021917,2]
[337782541,1726114247645,-500.0,0.00021917,2]
[337782542,1726114247654,-1154.14,0.00021917,2]
[337782543,1726114247663,-500.0,0.00021917,2]
[337782544,1726114247673,-500.0,0.00021917,2]
[337782545,1726114247682,-500.0,0.00021917,2]
[337782546,1726114247691,-500.0,0.00021917,2]
[337782547,1726114247701,-500.0,0.00021917,2]
[337782548,1726114247710,-1524.99,0.00021917,2]
[337782549,1726114247719,-500.0,0.00021917,2]
[337782550,1726114247729,-1206.64,0.00021917,2]
[337782551,1726114247738,-1853.89,0.00021917,2]
[337782552,1726114247747,-2658.09,0.00021917,2]
[337782553,1726114247756,-500.0,0.00021917,2]
[337782554,1726114247765,-500.0,0.00021917,2]
[337782555,1726114247774,-1641.64,0.00021917,2]
[337782556,1726114247783,-426.02987266,0.00021917,2]
[337782557,1726114247792,-500.0,0.00021917,2]
[337782558,1726114247801,-461.4468156,0.00021917,2]
[337782559,1726114247810,-500.0,0.00021917,2]
[337782560,1726114247819,-500.0,0.00021917,2]
[337782561,1726114247828,-1501.27,0.00021917,2]
[337782562,1726114247838,-151.0,0.00021917,2]
[337782563,1726114247847,-500.0,0.00021917,2]
[337782564,1726114247856,-3867.07,0.00021917,2]
[337782565,1726114247865,-500.0,0.00021917,2]
[337782566,1726114247874,-1019.0,0.00021917,2]
[337782567,1726114247883,-500.0,0.00021917,2]
[337782568,1726114247892,-500.0,0.00021917,2]
[337782569,1726114247901,-500.0,0.00021917,2]
[337782570,1726114247910,-151.0,0.00021917,2]
[337782571,1726114247920,-500.0,0.00021917,2]
[337782572,1726114247930,-500.0,0.00021917,2]
[337782573,1726114247939,-1320.81,0.00021917,2]
[337782574,1726114247948,-500.0,0.00021917,2]
[337782575,1726114247958,-500.0,0.00021917,2]
[337782576,1726114247968,-1324.78,0.00021917,2]
[337782577,1726114247977,-500.0,0.00021917,2]
[337782578,1726114247986,-500.0,0.00021917,2]
[337782579,1726114247996,-500.0,0.00021917,2]
[337782580,1726114248005,-5622.05,0.00021917,2]
[337782581,1726114248014,-500.0,0.00021917,2]
[337782582,1726114248024,-344.76624333,0.00021917,2]
[337782583,1726114248033,-1528.89,0.00021917,2]
[337782584,1726114248044,-500.0,0.00021917,2]
[337782585,1726114248053,-500.0,0.00021917,2]
[337782586,1726114248063,-500.0,0.00021917,2]
[337782587,1726114248073,-636.86437409,0.00021917,2]
[337782588,1726114248083,-500.0,0.00021917,2]
[337782589,1726114248095,-503.39234067,0.00021917,2]
[337782590,1726114248106,-2800.83,0.00021917,2]
[337782591,1726114248115,-173.04786,0.00021918,2]
[337782592,1726114248125,-489.167347,0.00021918,2]
[337782593,1726114248136,-501.80812817,0.00021941,2]
[337782594,1726114248146,-250.0,0.00021951,2]
[337782595,1726114248155,-374.58851612,0.00021973,2]
[337782596,1726114248165,-162.31002438,0.00021973,2]
[337782597,1726114248176,-358.64522308,0.00021973,2]
[337782598,1726114248185,-500.0,0.00021973,2]
[337782599,1726114248195,-500.0,0.00021973,2]
[337782600,1726114248204,-500.0,0.00021973,2]
[337782601,1726114248214,-501.9754243,0.00021973,2]
[337782602,1726114248224,-278.22610637,0.00021973,2]
[337782603,1726114248233,-200.73603317,0.00021973,2]
[337782604,1726114248243,-500.99178075,0.00021973,2]
[337782605,1726114248252,-500.0,0.00021973,2]
[337782606,1726114248262,-500.0,0.00021973,2]
[337782607,1726114248284,-500.0,0.00021973,2]
[337782608,1726114248295,-162.26995318,0.00021973,2]
[337782609,1726114248304,-500.0,0.00021973,2]
[337782610,1726114248315,-1154.14,0.00021989,2]
[337782611,1726114248325,-150.112233,0.00022,5]
[337782612,1726114248335,-150.112233,0.00022,2]
[337782613,1726114248345,-150.112233,0.00022,5]
[337782614,1726114248355,-150.112233,0.00022,2]
[337782615,1726114248364,-150.112233,0.00022,5]
[337782616,1726114248374,-150.112233,0.00022,3]
[337782617,1726114248384,-150.112238,0.00022,4]
[337782618,1726114248393,-156.0,0.00022,2]
[337782619,1726114248403,-156.481922,0.00022,4]
[337782620,1726114248413,-159.0,0.00022,2]
[337782621,1726114248423,-250.0,0.00022008,2]
[337782622,1726114248432,-250.0,0.00022066,2]
[337782623,1726114248441,-150.112233,0.000221,3]
[337782624,1726114248451,-150.112233,0.000221,2]
[337782625,1726114248460,-150.112233,0.000221,2]
[337782626,1726114248470,-4000.0,0.000221,2]
[337782627,1726114248480,-150.112233,0.000221,4]
[337782628,1726114248490,-150.112233,0.000221,4]
[337782629,1726114248500,-150.112233,0.000221,3]
[337782630,1726114248510,-150.112233,0.000221,3]
[337782631,1726114248519,-150.112233,0.000221,3]
[337782632,1726114248529,-150.112233,0.000221,3]
[337782633,1726114248539,-250.0,0.00022124,2]
[337782634,1726114248549,-151.37378064,0.00022173,2]
[337782635,1726114248560,-1154.14,0.0002218,2]
[337782636,1726114248571,-1154.14,0.0002218,2]
[337782637,1726114248581,-1154.14,0.0002218,2]
[337782638,1726114248591,-1154.14,0.0002218,2]
[337782639,1726114248603,-1154.14,0.0002218,2]
[337782640,1726114248614,-1154.2530335,0.0002218,2]
[337782641,1726114248624,-151.0,0.00022181,7]
[337782642,1726114248635,-151.0,0.00022181,7]
[337782643,1726114248646,-151.0,0.00022181,7]
[337782644,1726114248657,-151.0,0.00022181,7]
[337782645,1726114248667,-151.0,0.00022181,7]
[337782646,1726114248678,-151.0,0.00022181,7]
[337782647,1726114248688,-151.0,0.00022181,7]
[337782648,1726114248699,-690.327968,0.00022181,7]
[337782649,1726114248709,-690.327968,0.00022181,7]
[337782650,1726114248719,-151.0,0.00022181,7]
[337782651,1726114248729,-190.026946,0.00022181,7]
[337782652,1726114248739,-190.026946,0.00022181,7]
[337782653,1726114248750,-151.0,0.00022181,7]
[337782654,1726114248760,-154.363797,0.00022181,7]
[337782655,1726114248770,-151.0,0.00022181,7]
[337782656,1726114248780,-151.0,0.00022181,7]
[337782657,1726114248790,-151.0,0.00022181,7]
[337782658,1726114248800,-151.0,0.0002219,7]
[337782659,1726114248818,-157.564412,0.0002219,7]
[337782660,1726114248828,-151.0,0.0002219,7]
[337782661,1726114248839,-151.0,0.0002219,7]
[337782662,1726114248851,-151.0,0.00022191,7]
[337782663,1726114248861,-151.0,0.00022191,7]
[337782664,1726114248870,-151.0,0.00022191,7]
[337782665,1726114248881,-151.0,0.00022191,7]
[337782666,1726114248891,-151.0,0.00022191,7]
[337782667,1726114248902,-151.0,0.00022191,7]
[337782668,1726114248913,-151.0,0.00022191,7]
[337782669,1726114248923,-151.0,0.00022191,7]
[337782670,1726114248934,-151.0,0.00022191,7]
[337782671,1726114248945,-151.0,0.00022191,7]
[337782672,1726114248956,-151.0,0.00022191,7]
[337782673,1726114248967,-501.08647035,0.00022191,2]
[337782674,1726114248976,-501.12231346,0.00022191,2]
[337782675,1726114248986,-500.0,0.00022191,2]
[337782676,1726114248996,-151.0,0.00022191,7]
[337782677,1726114249007,-151.0,0.00022191,7]
[337782678,1726114249018,-151.0,0.00022191,7]
[337782679,1726114249028,-151.0,0.00022191,7]
[337782680,1726114249039,-151.0,0.00022191,7]
[337782681,1726114249050,-151.0,0.00022191,7]
[337782682,1726114249060,-500.0,0.00022191,2]
[337782683,1726114249071,-500.0,0.00022191,2]
[337782684,1726114249081,-500.0,0.00022191,2]
[337782685,1726114249091,-500.0,0.00022191,2]
[337782686,1726114249101,-500.0,0.00022191,2]
[337782687,1726114249111,-500.0,0.00022191,2]
[337782688,1726114249121,-500.0,0.00022191,2]
[337782689,1726114249131,-500.0,0.00022191,2]
[337782690,1726114249141,-272.10698763,0.00022191,2]
[337782691,1726114249152,-500.0,0.00022191,2]
[337782692,1726114249162,-404.13349103,0.00022191,2]
[337782693,1726114249173,-500.0,0.00022191,2]
[337782694,1726114249183,-500.0,0.00022191,2]
[337782695,1726114249192,-501.24529178,0.00022191,2]
[337782696,1726114249202,-500.0,0.00022191,2]
[337782697,1726114249213,-762.2,0.00022191,2]
[337782698,1726114249225,-500.0,0.00022191,2]
[337782699,1726114249237,-500.0,0.00022191,2]
[337782700,1726114249248,-500.0,0.00022191,2]
[337782701,1726114249259,-1088.69,0.00022191,2]
[337782702,1726114249274,-1278.69,0.00022191,2]
[337782703,1726114249284,-505.67625459,0.00022191,2]
[337782704,1726114249294,-606.49,0.00022191,2]
[337782705,1726114249304,-1505.36,0.00022191,2]
[337782706,1726114249315,-500.0,0.00022191,2]
[337782707,1726114249330,-1022.42,0.00022191,2]
[337782708,1726114249340,-500.0,0.00022191,2]
[337782709,1726114249353,-500.0,0.00022191,2]
[337782710,1726114249364,-500.0,0.00022191,2]
[337782711,1726114249374,-500.0,0.00022191,2]
[337782712,1726114249386,-500.0,0.00022191,2]
[337782713,1726114249396,-502.19027191,0.00022191,2]
[337782714,1726114249406,-511.21189202,0.00022191,2]
[337782715,1726114249419,-500.0,0.00022191,2]
[337782716,1726114249429,-500.0,0.00022191,2]
[337782717,1726114249440,-500.0,0.00022191,2]
[337782718,1726114249451,-483.35798194,0.00022191,2]
[337782719,1726114249462,-507.34,0.00022191,2]
[337782720,1726114249472,-501.49033047,0.00022191,2]
[337782721,1726114249482,-500.0,0.00022191,2]
[337782722,1726114249492,-151.0,0.00022191,7]
[337782723,1726114249502,-500.0,0.00022191,2]
[337782724,1726114249513,-502.61441016,0.00022191,2]
[337782725,1726114249523,-501.52088581,0.00022191,2]
[337782726,1726114249533,-500.0,0.00022191,2]
[337782727,1726114249544,-210.64149446,0.00022191,2]
[337782728,1726114249555,-500.0,0.00022191,2]
[337782729,1726114249566,-500.0,0.00022191,2]
[337782730,1726114249576,-500.0,0.00022191,2]
[337782731,1726114249585,-556.03,0.00022191,2]
[337782732,1726114249595,-500.0,0.00022191,2]
[337782733,1726114249605,-504.92599367,0.00022191,2]
[337782734,1726114249616,-908.54,0.00022191,2]
[337782735,1726114249626,-434.01232213,0.00022191,2]
[337782736,1726114249636,-509.97526314,0.00022191,2]
[337782737,1726114249647,-500.87703025,0.00022191,2]
[337782738,1726114249657,-500.0,0.00022191,2]
[337782739,1726114249668,-500.0,0.00022191,2]
[337782740,1726114249678,-562.18,0.00022191,2]
[337782741,1726114249688,-504.60527564,0.00022191,2]
[337782742,1726114249699,-517.52225358,0.00022191,2]
[337782743,1726114249709,-500.0,0.00022191,2]
[337782744,1726114249718,-808.63,0.00022191,2]
[337782745,1726114249728,-1908.5,0.00022191,2]
[337782746,1726114249739,-500.0,0.00022191,2]
[337782747,1726114249749,-500.0,0.00022191,2]
[337782748,1726114249759,-504.31843299,0.00022191,2]
[337782749,1726114249769,-500.0,0.00022191,2]
[337782750,1726114249778,-508.68391604,0.00022191,2]
[337782751,1726114249788,-500.0,0.00022191,2]
[337782752,1726114249798,-500.0,0.00022191,2]
[337782753,1726114249808,-500.0,0.00022191,2]
[337782754,1726114249818,-500.0,0.00022191,2]
[337782755,1726114249828,-500.0,0.00022191,2]
[337782756,1726114249837,-503.28161975,0.00022191,2]
[337782757,1726114249847,-510.35523442,0.00022191,2]
[337782758,1726114249857,-500.0,0.00022191,2]
[337782759,1726114249867,-500.0,0.00022191,2]
[337782760,1726114249876,-503.15917372,0.00022191,2]
[337782761,1726114249886,-500.0,0.00022191,2]
[337782762,1726114249896,-497.54475266,0.00022191,2]
[337782763,1726114249906,-959.71,0.00022191,2]
[337782764,1726114249916,-561.35682585,0.00022191,2]
[337782765,1726114249926,-695.7,0.00022191,2]
[337782766,1726114249936,-795.02,0.00022191,2]
[337782767,1726114249946,-551.23,0.00022191,2]
[337782768,1726114249956,-500.0,0.00022191,2]
[337782769,1726114249965,-725.05,0.00022191,2]
[337782770,1726114249975,-988.02,0.00022191,2]
[337782771,1726114249985,-151.0,0.00022191,7]
[337782772,1726114249995,-500.0,0.00022191,2]
[337782773,1726114250004,-1437.06,0.00022191,2]
[337782774,1726114250014,-495.75550351,0.00022191,2]
[337782775,1726114250024,-500.0,0.00022191,2]
[337782776,1726114250035,-545.01704193,0.00022191,2]
[337782777,1726114250045,-163.6601284,0.00022191,2]
[337782778,1726114250054,-502.23973073,0.00022191,2]
[337782779,1726114250064,-151.0,0.00022191,7]
[337782780,1726114250074,-504.83752884,0.00022191,2]
[337782781,1726114250083,-500.0,0.00022191,2]
[337782782,1726114250092,-151.0,0.00022191,7]
[337782783,1726114250102,-500.0,0.00022191,2]
[337782784,1726114250112,-1298.29,0.00022191,2]
[337782785,1726114250122,-500.0,0.00022191,2]
[337782786,1726114250131,-500.0,0.00022191,2]
[337782787,1726114250141,-500.0,0.00022191,2]
[337782788,1726114250151,-501.96867687,0.00022191,2]
[337782789,1726114250161,-500.0,0.00022191,2]
[337782790,1726114250171,-506.35302767,0.00022191,2]
[337782791,1726114250183,-503.26379179,0.00022191,2]
[337782792,1726114250193,-500.0,0.00022191,2]
[337782793,1726114250203,-2086.99,0.00022191,2]
[337782794,1726114250213,-620.84,0.00022191,2]
[337782795,1726114250223,-1265.69,0.00022191,2]
[337782796,1726114250232,-500.0,0.00022191,2]
[337782797,1726114250242,-500.0,0.00022191,2]
[337782798,1726114250252,-500.0,0.00022191,2]
[337782799,1726114250262,-500.0,0.00022191,2]
[337782800,1726114250277,-506.54690317,0.00022191,2]
[337782801,1726114250286,-500.0,0.00022191,2]
[337782802,1726114250295,-500.0,0.00022191,2]
[337782803,1726114250306,-549.9797443,0.00022191,2]
[337782804,1726114250315,-492.76881585,0.00022191,2]
[337782805,1726114250325,-503.36597922,0.00022191,2]
[337782806,1726114250335,-151.0,0.00022191,7]
[337782807,1726114250344,-581.15,0.00022191,2]
[337782808,1726114250355,-222.400699,0.00022191,7]
[337782809,1726114250365,-500.0,0.00022191,2]
[337782810,1726114250375,-500.0,0.00022191,2]
[337782811,1726114250385,-172.72408163,0.00022191,2]
[337782812,1726114250396,-500.0,0.00022191,2]
[337782813,1726114250405,-1675.76,0.00022191,2]
[337782814,1726114250415,-500.0,0.00022191,2]
[337782815,1726114250425,-488.75707851,0.00022191,2]
[337782816,1726114250435,-1195.5,0.00022191,2]
[337782817,1726114250446,-500.0,0.00022191,2]
[337782818,1726114250456,-151.0,0.00022191,7]
[337782819,1726114250466,-500.0,0.00022191,2]
[337782820,1726114250475,-1260.64,0.00022191,2]
[337782821,1726114250485,-501.75164997,0.00022191,2]
[337782822,1726114250495,-500.0,0.00022191,2]
[337782823,1726114250505,-802.21,0.00022191,2]
[337782824,1726114250515,-526.19,0.00022191,2]
[337782825,1726114250526,-508.50948599,0.00022191,2]
[337782826,1726114250536,-503.16045198,0.00022191,2]
[337782827,1726114250546,-796.68,0.00022191,2]
[337782828,1726114250557,-502.49221245,0.00022191,2]
[337782829,1726114250567,-500.0,0.00022191,2]
[337782830,1726114250577,-1814.95,0.00022191,2]
[337782831,1726114250587,-355.08995395,0.00022191,2]
[337782832,1726114250597,-500.0,0.00022191,2]
[337782833,1726114250608,-501.19595743,0.00022191,2]
[337782834,1726114250617,-508.16,0.00022191,2]
[337782835,1726114250627,-500.0,0.00022191,2]
[337782836,1726114250637,-645.23,0.00022191,2]
[337782837,1726114250646,-500.0,0.00022191,2]
[337782838,1726114250656,-500.0,0.00022191,2]
[337782839,1726114250666,-287.11439826,0.00022191,2]
[337782840,1726114250677,-500.0,0.00022191,2]
[337782841,1726114250688,-502.76222325,0.00022191,2]
[337782842,1726114250699,-1169.02,0.00022191,2]
[337782843,1726114250708,-511.93914735,0.00022191,2]
[337782844,1726114250718,-647.37512149,0.00022191,2]
[337782845,1726114250728,-500.0,0.00022191,2]
[337782846,1726114250738,-500.0,0.00022191,2]
[337782847,1726114250747,-509.16814663,0.00022191,2]
[337782848,1726114250758,-500.0,0.00022191,2]
[337782849,1726114250767,-500.0,0.00022191,2]
[337782850,1726114250777,-500.0,0.00022191,2]
[337782851,1726114250788,-500.0,0.00022191,2]
[337782852,1726114250798,-1266.94,0.00022191,2]
[337782853,1726114250808,-167.498445,0.00022191,7]
[337782854,1726114250818,-500.0,0.00022191,2]
[337782855,1726114250829,-500.0,0.00022191,2]
[337782856,1726114251034,-501.8925155,0.00022191,2]
[337782857,1726114251043,-500.0,0.00022191,2]
[337782858,1726114251054,-504.05739092,0.00022191,2]
[337782859,1726114251064,-646.8,0.00022191,2]
[337782860,1726114251073,-700.94,0.00022191,2]
[337782861,1726114251082,-500.0,0.00022191,2]
[337782862,1726114251092,-749.94,0.00022191,2]
[337782863,1726114251101,-500.0,0.00022191,2]
[337782864,1726114251111,-280.92886906,0.00022191,2]
[337782865,1726114251120,-508.25135858,0.00022191,2]
[337782866,1726114251129,-500.0,0.00022191,2]
[337782867,1726114251138,-500.0,0.00022191,2]
[337782868,1726114251147,-509.6,0.00022191,2]
[337782869,1726114251157,-500.0,0.00022191,2]
[337782870,1726114251166,-844.45,0.00022191,2]
[337782871,1726114251176,-500.0,0.00022191,2]
[337782872,1726114251186,-546.58012675,0.00022191,2]
[337782873,1726114251195,-328.19776144,0.00022191,2]
[337782874,1726114251205,-500.0,0.00022191,2]
[337782875,1726114251214,-1139.35,0.00022191,2]
[337782876,1726114251224,-500.0,0.00022191,2]
[337782877,1726114251234,-794.64,0.00022191,2]
[337782878,1726114251245,-883.51,0.00022191,2]
[337782879,1726114251258,-871.58,0.00022191,2]
[337782880,1726114251271,-500.0,0.00022191,2]
[337782881,1726114251281,-690.327968,0.00022191,7]
[337782882,1726114251294,-500.0,0.00022191,2]
[337782883,1726114251304,-500.0,0.00022191,2]
[337782884,1726114251314,-502.81989525,0.00022191,2]
[337782885,1726114251324,-690.327968,0.00022191,7]
[337782886,1726114251335,-151.0,0.00022191,7]
[337782887,1726114251348,-190.026946,0.00022191,7]
[337782888,1726114251358,-500.0,0.00022191,2]
[337782889,1726114251368,-190.026946,0.00022191,7]
[337782890,1726114251378,-500.0,0.00022191,2]
[337782891,1726114251388,-1292.16,0.00022191,2]
[337782892,1726114251397,-500.0,0.00022191,2]
[337782893,1726114251406,-151.0,0.00022191,7]
[337782894,1726114251416,-151.0,0.00022191,7]
[337782895,1726114251426,-500.0,0.00022191,2]
[337782896,1726114251437,-500.0,0.00022191,2]
[337782897,1726114251447,-500.0,0.00022191,2]
[337782898,1726114251457,-189.43852238,0.00022191,2]
[337782899,1726114251467,-500.0,0.00022191,2]
[337782900,1726114251477,-500.0,0.00022191,2]
[337782901,1726114251488,-640.88,0.00022191,2]
[337782902,1726114251499,-1365.29,0.00022191,2]
[337782903,1726114251510,-500.0,0.00022191,2]
[337782904,1726114251520,-500.0,0.00022191,2]
[337782905,1726114251530,-500.0,0.00022191,2]
[337782906,1726114251541,-1609.15,0.00022191,2]
[337782907,1726114251553,-500.0,0.00022191,2]
[337782908,1726114251563,-500.0,0.00022191,2]
[337782909,1726114251572,-501.80210635,0.00022191,2]
[337782910,1726114251581,-1193.33,0.00022191,2]
[337782911,1726114251590,-500.0,0.00022191,2]
[337782912,1726114251600,-531.3,0.00022191,2]
[337782913,1726114251609,-500.0,0.00022191,2]
[337782914,1726114251619,-500.0,0.00022191,2]
[337782915,1726114251629,-500.0,0.00022191,2]
[337782916,1726114251640,-248.69251911,0.00022191,2]
[337782917,1726114251959,-483.71748089,0.00022191,2]
[337782918,1726114251969,-20.8848616,0.00022191,2]
[337782919,1726114251990,-0.00665238,0.00022191,2]
[337782920,1726114252354,-500.0,0.00021917,2]
[337782921,1726114252364,-212.6500003,0.00021917,2]
[337782922,1726114252377,-287.3499997,0.00021917,2]
[337782923,1726114252388,-479.10848602,0.00022191,2]
[337782924,1726114252398,-500.0,0.00022191,2]
[337782925,1726114252409,-631.5,0.00022191,2]
[337782926,1726114252418,-500.0,0.00022191,2]
[337782927,1726114252428,-500.0,0.00022191,2]
[337782928,1726114252438,-500.0,0.00022191,2]
[337782929,1726114252449,-500.0,0.00022191,2]
[337782930,1726114252460,-500.0,0.00022191,2]
[337782931,1726114252471,-500.0,0.00022191,2]
[337782932,1726114252482,-500.0,0.00022191,2]
[337782933,1726114252491,-500.0,0.00022191,2]
[337782934,1726114252501,-306.949319,0.00022191,7]
[337782935,1726114252510,-500.0,0.00022191,2]
[337782936,1726114252522,-500.0,0.00022191,2]
[337782937,1726114252532,-519.7166908,0.00022191,2]
[337782938,1726114252542,-500.0,0.00022191,2]
[337782939,1726114252551,-436.01090799,0.00022191,2]
[337782940,1726114252560,-500.0,0.00022191,2]
[337782941,1726114252570,-151.0,0.00022191,7]
[337782942,1726114252579,-151.0,0.00022191,7]
[337782943,1726114252588,-500.0,0.00022191,2]
[337782944,1726114252597,-500.0,0.00022191,2]
[337782945,1726114252606,-2322.92,0.00022191,2]
[337782946,1726114252616,-500.0,0.00022191,2]
[337782947,1726114252626,-292.12437783,0.00022191,2]
[337782948,1726114252635,-500.0,0.00022191,2]
[337782949,1726114252644,-500.0,0.00022191,2]
[337782950,1726114252654,-500.0,0.00022191,2]
[337782951,1726114252663,-151.0,0.00022191,7]
[337782952,1726114252675,-1831.5,0.00022191,2]
[337782953,1726114252684,-627.73,0.00022191,2]
[337782954,1726114252694,-500.0,0.00022191,2]
[337782955,1726114252703,-151.0,0.00022191,7]
[337782956,1726114252712,-1859.18,0.00022191,2]
[337782957,1726114252721,-500.0,0.00022191,2]
[337782958,1726114252731,-500.0,0.00022191,2]
[337782959,1726114252741,-500.0,0.00022191,2]
[337782960,1726114252751,-258.87557628,0.00022191,2]
[337782961,1726114252762,-500.0,0.00022191,2]
[337782962,1726114252772,-500.0,0.00022191,2]
[337782963,1726114252782,-500.0,0.00022191,2]
[337782964,1726114252793,-500.0,0.00022191,2]
[337782965,1726114252804,-883.88,0.00022191,2]
[337782966,1726114252815,-500.0,0.00022191,2]
[337782967,1726114252825,-517.070764,0.00022191,2]
[337782968,1726114252836,-856.08,0.00022191,2]
[337782969,1726114252847,-500.0,0.00022191,2]
[337782970,1726114252859,-627.25,0.00022191,2]
[337782971,1726114252869,-535.08,0.00022191,2]
[337782972,1726114252878,-500.0,0.00022191,2]
[337782973,1726114252887,-151.0,0.00022191,7]
[337782974,1726114252896,-151.0,0.00022191,7]
[337782975,1726114252905,-500.0,0.00022191,2]
[337782976,1726114252914,-500.0,0.00022191,2]
[337782977,1726114252923,-804.51,0.00022191,2]
[337782978,1726114252933,-500.0,0.00022191,2]
[337782979,1726114252943,-1324.83,0.00022191,2]
[337782980,1726114252953,-500.0,0.00022191,2]
[337782981,1726114252962,-500.0,0.00022191,2]
[337782982,1726114252972,-1817.58,0.00022191,2]
[337782983,1726114252981,-500.0,0.00022191,2]
[337782984,1726114252990,-500.0,0.00022191,2]
[337782985,1726114252999,-495.76415998,0.00022191,2]
[337782986,1726114253008,-500.0,0.00022191,2]
[337782987,1726114253017,-500.0,0.00022191,2]
[337782988,1726114253027,-500.0,0.00022191,2]
[337782989,1726114253036,-813.55,0.00022191,2]
[337782990,1726114253045,-500.0,0.00022191,2]
[337782991,1726114253054,-500.0,0.00022191,2]
[337782992,1726114253063,-1174.03,0.00022191,2]
[337782993,1726114253073,-394.28397163,0.00022191,2]
[337782994,1726114253082,-500.0,0.00022191,2]
[337782995,1726114253092,-151.0,0.00022191,7]